Workbook

Sheet Kostnader för badrumsrenovering
B1: KALKYLBLADET KOSTNADER FÖR BADRUMSRENOVERING
B2: Obs! Kolumnerna med skillnaden visas om det faktiska beloppet har överskridit det beräknade. Röda tal anger överskridande (negativt) och svarta anger underskridande (positivt).
E3: Specificerad kostnad (kr) | H3: Totalkostnad (kr)
B4: Område | C4: Artiklar | D4: Antal | E4: Beräknad | F4: Faktisk | G4: Skillnad | H4: Beräknad | I4: Faktisk | J4: Skillnad
B5: Badkar/Dusch | C5: Badkar, gjutjärn, 1,5 m, standard | D5: 1 | E5: 250.00 kr | F5: =RANDBETWEEN(E5+2,E5+20) -> 263.00 kr | G5: =IFERROR(KOSTNADER[[#This Row],[Beräknad]]-KOSTNADER[[#This Row],[Faktisk]], "") -> -13.00 kr | H5: =IFERROR(KOSTNADER[[#This Row],[Antal]]*KOSTNADER[[#This Row],[Beräknad]], "") -> 250.00 kr | I5: =IFERROR(KOSTNADER[[#This Row],[Antal]]*KOSTNADER[[#This Row],[Faktisk]], "") -> 263.00 kr | J5: =IFERROR(KOSTNADER[[#This Row],[Beräknad ]]-KOSTNADER[[#This Row],[Faktisk ]], "") -> -13.00 kr
B6: Badkar/Dusch | C6: Duschdörrar, med gångjärn, standard | D6: 1 | E6: 200.00 kr | F6: 215.00 kr | G6: =IFERROR(KOSTNADER[[#This Row],[Beräknad]]-KOSTNADER[[#This Row],[Faktisk]], "") -> -15.00 kr | H6: =IFERROR(KOSTNADER[[#This Row],[Antal]]*KOSTNADER[[#This Row],[Beräknad]], "") -> 200.00 kr | I6: =IFERROR(KOSTNADER[[#This Row],[Antal]]*KOSTNADER[[#This Row],[Faktisk]], "") -> 215.00 kr | J6: =IFERROR(KOSTNADER[[#This Row],[Beräknad ]]-KOSTNADER[[#This Row],[Faktisk ]], "") -> -15.00 kr
B7: Badkar/Dusch | C7: Duschmunstycke, standard | D7: 1 | E7: 50.00 kr | F7: 68.00 kr | G7: =IFERROR(KOSTNADER[[#This Row],[Beräknad]]-KOSTNADER[[#This Row],[Faktisk]], "") -> -18.00 kr | H7: =IFERROR(KOSTNADER[[#This Row],[Antal]]*KOSTNADER[[#This Row],[Beräknad]], "") -> 50.00 kr | I7: =IFERROR(KOSTNADER[[#This Row],[Antal]]*KOSTNADER[[#This Row],[Faktisk]], "") -> 68.00 kr | J7: =IFERROR(KOSTNADER[[#This Row],[Beräknad ]]-KOSTNADER[[#This Row],[Faktisk ]], "") -> -18.00 kr
B8: Badkar/Dusch | C8: Badkarsvägg, standard | D8: 1 | E8: 200.00 kr | F8: 212.00 kr | G8: =IFERROR(KOSTNADER[[#This Row],[Beräknad]]-KOSTNADER[[#This Row],[Faktisk]], "") -> -12.00 kr | H8: =IFERROR(KOSTNADER[[#This Row],[Antal]]*KOSTNADER[[#This Row],[Beräknad]], "") -> 200.00 kr | I8: =IFERROR(KOSTNADER[[#This Row],[Antal]]*KOSTNADER[[#This Row],[Faktisk]], "") -> 212.00 kr | J8: =IFERROR(KOSTNADER[[#This Row],[Beräknad ]]-KOSTNADER[[#This Row],[Faktisk ]], "") -> -12.00 kr
B9: Skåp | C9: Medicinskåp 60 cm, deluxe | D9: 1 | E9: 200.00 kr | F9: 212.00 kr | G9: =IFERROR(KOSTNADER[[#This Row],[Beräknad]]-KOSTNADER[[#This Row],[Faktisk]], "") -> -12.00 kr | H9: =IFERROR(KOSTNADER[[#This Row],[Antal]]*KOSTNADER[[#This Row],[Beräknad]], "") -> 200.00 kr | I9: =IFERROR(KOSTNADER[[#This Row],[Antal]]*KOSTNADER[[#This Row],[Faktisk]], "") -> 212.00 kr | J9: =IFERROR(KOSTNADER[[#This Row],[Beräknad ]]-KOSTNADER[[#This Row],[Faktisk ]], "") -> -12.00 kr
B10: Skåp | C10: Tvättställ med skåp 75 cm, standard | D10: 2 | E10: 100.00 kr | F10: 113.00 kr | G10: =IFERROR(KOSTNADER[[#This Row],[Beräknad]]-KOSTNADER[[#This Row],[Faktisk]], "") -> -13.00 kr | H10: =IFERROR(KOSTNADER[[#This Row],[Antal]]*KOSTNADER[[#This Row],[Beräknad]], "") -> 200.00 kr | I10: =IFERROR(KOSTNADER[[#This Row],[Antal]]*KOSTNADER[[#This Row],[Faktisk]], "") -> 226.00 kr | J10: =IFERROR(KOSTNADER[[#This Row],[Beräknad ]]-KOSTNADER[[#This Row],[Faktisk ]], "") -> -26.00 kr
B11: Bänkar | C11: Keramiska plattor, deluxe (antal i m²) | D11: 5 | E11: 22.50 kr | F11: 31.00 kr | G11: =IFERROR(KOSTNADER[[#This Row],[Beräknad]]-KOSTNADER[[#This Row],[Faktisk]], "") -> -8.50 kr | H11: =IFERROR(KOSTNADER[[#This Row],[Antal]]*KOSTNADER[[#This Row],[Beräknad]], "") -> 112.50 kr | I11: =IFERROR(KOSTNADER[[#This Row],[Antal]]*KOSTNADER[[#This Row],[Faktisk]], "") -> 155.00 kr | J11: =IFERROR(KOSTNADER[[#This Row],[Beräknad ]]-KOSTNADER[[#This Row],[Faktisk ]], "") -> -42.50 kr
B12: Kranar | C12: Vattenkran, badkar, standard | D12: 1 | E12: 90.00 kr | F12: 93.00 kr | G12: =IFERROR(KOSTNADER[[#This Row],[Beräknad]]-KOSTNADER[[#This Row],[Faktisk]], "") -> -3.00 kr | H12: =IFERROR(KOSTNADER[[#This Row],[Antal]]*KOSTNADER[[#This Row],[Beräknad]], "") -> 90.00 kr | I12: =IFERROR(KOSTNADER[[#This Row],[Antal]]*KOSTNADER[[#This Row],[Faktisk]], "") -> 93.00 kr | J12: =IFERROR(KOSTNADER[[#This Row],[Beräknad ]]-KOSTNADER[[#This Row],[Faktisk ]], "") -> -3.00 kr
B13: Kranar | C13: Vattenkran, dusch, ett handtag, standard | D13: 1 | E13: 115.00 kr | F13: 117.00 kr | G13: =IFERROR(KOSTNADER[[#This Row],[Beräknad]]-KOSTNADER[[#This Row],[Faktisk]], "") -> -2.00 kr | H13: =IFERROR(KOSTNADER[[#This Row],[Antal]]*KOSTNADER[[#This Row],[Beräknad]], "") -> 115.00 kr | I13: =IFERROR(KOSTNADER[[#This Row],[Antal]]*KOSTNADER[[#This Row],[Faktisk]], "") -> 117.00 kr | J13: =IFERROR(KOSTNADER[[#This Row],[Beräknad ]]-KOSTNADER[[#This Row],[Faktisk ]], "") -> -2.00 kr
B14: Kranar | C14: Tvättställsblandare, standard | D14: 1 | E14: 95.00 kr | F14: 113.00 kr | G14: =IFERROR(KOSTNADER[[#This Row],[Beräknad]]-KOSTNADER[[#This Row],[Faktisk]], "") -> -18.00 kr | H14: =IFERROR(KOSTNADER[[#This Row],[Antal]]*KOSTNADER[[#This Row],[Beräknad]], "") -> 95.00 kr | I14: =IFERROR(KOSTNADER[[#This Row],[Antal]]*KOSTNADER[[#This Row],[Faktisk]], "") -> 113.00 kr | J14: =IFERROR(KOSTNADER[[#This Row],[Beräknad ]]-KOSTNADER[[#This Row],[Faktisk ]], "") -> -18.00 kr
B15: Golv | C15: Keramiska plattor, standard (antal i m²) | D15: 35 | E15: 12.00 kr | F15: 21.00 kr | G15: =IFERROR(KOSTNADER[[#This Row],[Beräknad]]-KOSTNADER[[#This Row],[Faktisk]], "") -> -9.00 kr | H15: =IFERROR(KOSTNADER[[#This Row],[Antal]]*KOSTNADER[[#This Row],[Beräknad]], "") -> 420.00 kr | I15: =IFERROR(KOSTNADER[[#This Row],[Antal]]*KOSTNADER[[#This Row],[Faktisk]], "") -> 735.00 kr | J15: =IFERROR(KOSTNADER[[#This Row],[Beräknad ]]-KOSTNADER[[#This Row],[Faktisk ]], "") -> -315.00 kr
B16: Maskinvara | C16: Handduksstång, standard | D16: 2 | E16: 15.00 kr | F16: 18.00 kr | G16: =IFERROR(KOSTNADER[[#This Row],[Beräknad]]-KOSTNADER[[#This Row],[Faktisk]], "") -> -3.00 kr | H16: =IFERROR(KOSTNADER[[#This Row],[Antal]]*KOSTNADER[[#This Row],[Beräknad]], "") -> 30.00 kr | I16: =IFERROR(KOSTNADER[[#This Row],[Antal]]*KOSTNADER[[#This Row],[Faktisk]], "") -> 36.00 kr | J16: =IFERROR(KOSTNADER[[#This Row],[Beräknad ]]-KOSTNADER[[#This Row],[Faktisk ]], "") -> -6.00 kr
B17: Maskinvara | C17: Toalettrullehållare | D17: 1 | E17: 10.00 kr | F17: 25.00 kr | G17: =IFERROR(KOSTNADER[[#This Row],[Beräknad]]-KOSTNADER[[#This Row],[Faktisk]], "") -> -15.00 kr | H17: =IFERROR(KOSTNADER[[#This Row],[Antal]]*KOSTNADER[[#This Row],[Beräknad]], "") -> 10.00 kr | I17: =IFERROR(KOSTNADER[[#This Row],[Antal]]*KOSTNADER[[#This Row],[Faktisk]], "") -> 25.00 kr | J17: =IFERROR(KOSTNADER[[#This Row],[Beräknad ]]-KOSTNADER[[#This Row],[Faktisk ]], "") -> -15.00 kr
B18: Belysning | C18: Infälld belysning, standard | D18: 4 | E18: 25.00 kr | F18: 44.00 kr | G18: =IFERROR(KOSTNADER[[#This Row],[Beräknad]]-KOSTNADER[[#This Row],[Faktisk]], "") -> -19.00 kr | H18: =IFERROR(KOSTNADER[[#This Row],[Antal]]*KOSTNADER[[#This Row],[Beräknad]], "") -> 100.00 kr | I18: =IFERROR(KOSTNADER[[#This Row],[Antal]]*KOSTNADER[[#This Row],[Faktisk]], "") -> 176.00 kr | J18: =IFERROR(KOSTNADER[[#This Row],[Beräknad ]]-KOSTNADER[[#This Row],[Faktisk ]], "") -> -76.00 kr
B19: Handfat | C19: Toalett, standard | D19: 2 | E19: 60.00 kr | F19: 74.00 kr | G19: =IFERROR(KOSTNADER[[#This Row],[Beräknad]]-KOSTNADER[[#This Row],[Faktisk]], "") -> -14.00 kr | H19: =IFERROR(KOSTNADER[[#This Row],[Antal]]*KOSTNADER[[#This Row],[Beräknad]], "") -> 120.00 kr | I19: =IFERROR(KOSTNADER[[#This Row],[Antal]]*KOSTNADER[[#This Row],[Faktisk]], "") -> 148.00 kr | J19: =IFERROR(KOSTNADER[[#This Row],[Beräknad ]]-KOSTNADER[[#This Row],[Faktisk ]], "") -> -28.00 kr
B20: Övrigt | D20: 1 | E20: 20.00 kr | F20: 32.00 kr | G20: =IFERROR(KOSTNADER[[#This Row],[Beräknad]]-KOSTNADER[[#This Row],[Faktisk]], "") -> -12.00 kr | H20: =IFERROR(KOSTNADER[[#This Row],[Antal]]*KOSTNADER[[#This Row],[Beräknad]], "") -> 20.00 kr | I20: =IFERROR(KOSTNADER[[#This Row],[Antal]]*KOSTNADER[[#This Row],[Faktisk]], "") -> 32.00 kr | J20: =IFERROR(KOSTNADER[[#This Row],[Beräknad ]]-KOSTNADER[[#This Row],[Faktisk ]], "") -> -12.00 kr
B21: Delsumma | E21: =SUBTOTAL(109,KOSTNADER[Beräknad]) -> 1,464.50 kr | F21: =SUBTOTAL(109,KOSTNADER[Faktisk]) -> 1,651.00 kr | G21: =SUBTOTAL(109,KOSTNADER[Skillnad]) -> -186.50 kr | H21: =SUBTOTAL(109,KOSTNADER[[Beräknad ]]) -> 2,212.50 kr | I21: =SUBTOTAL(109,KOSTNADER[[Faktisk ]]) -> 2,826.00 kr | J21: =SUBTOTAL(109,KOSTNADER[[Skillnad ]]) -> -613.50 kr
B22: Oförutsedda kostnader (lägg till 30 % av beräknat) | E22: =IFERROR(KOSTNADER[[#Totals],[Beräknad]]*0.3, "") -> 439.35 kr | H22: =IFERROR(KOSTNADER[[#Totals],[Beräknad ]]*0.3, "") -> 663.75 kr
B23: Totala kostnader | E23: =IFERROR(SUM(E21:E21), "") -> 1,464.50 kr | H23: =IFERROR(SUM(KOSTNADER[[#Totals],[Beräknad ]],Överskott), "") -> 2,876.25 kr
